[Event "DFMMLV 2019"]
[Site "Braunfels"]
[Date "2019.06.20"]
[Round "1.42"]
[White "Braje, Monika"]
[Black "Zhang, Fan"]
[Result "1/2-1/2"]
[ECO "C02"]
[WhiteElo "1781"]
[BlackElo "2069"]
[Annotator "NA RC"]
[PlyCount "32"]
[EventDate "2019.06.20"]
[EventType "team-tourn"]
[EventCountry "GER"]
[SourceTitle "playchess.com"]
[Source "ChessBase"]
[SourceQuality "1"]
[WhiteTeam "Rheinland Pfalz"]
[BlackTeam "Baden"]
[TimeControl "40/5400+30:1800+30"]

1. e4 {[%emt 0:00:00]} e6 {[%emt 0:00:00]} 2. d4 {[%emt 0:00:00]} d5 {[%emt 0:00:00]} 3. e5 {[%emt 0:00:00]} c5 {[%emt 0:00:00]} 4. c3 {[%emt 0:00:00]} Nc6 {[%emt 0:00:18]} 5. Nf3 {[%emt 0:00:19]} Rb8 {[%emt 0:04:49]} 6. dxc5 {[%emt 0:01:58]} Bxc5 {[%emt 0:00:25]} 7. Bd3 {[%emt 0:01:08]} Nge7 {[%emt 0:01:57]} 8. Bf4 {[%emt 0:01:12]} b5 {[%emt 0:08:45]} 9. O-O {[%emt 0:08:20]} b4 {[%emt 0:04:14]} 10. Qe2 {[%emt 0:01:40]} Ng6 {[%emt 0:07:22]} 11. Bg3 {[%emt 0:00:31]} Qb6 {[%emt 0:02:20]} 12. Nbd2 {[%emt 0:05:13]} O-O {[%emt 0:05:34]} 13. c4 {[%emt 0:17:21]} Rd8 {[%emt 0:08:38]} 14. Rfe1 {[%emt 0:05:55]} Ba6 {[%emt 0:00:39]} 15. Rac1 {[%emt 0:01:16]} Rbc8 {[%emt 0:03:15]} 16. b3 {[%emt 0:12:02]} Na5 {[%emt 0:12:27]} 1/2-1/2

[Event "DFMMLV 2019"]
[Site "Braunfels"]
[Date "2019.06.20"]
[Round "1.43"]
[White "Schneider, Birgit"]
[Black "Kalina, Lena"]
[Result "1-0"]
[ECO "B22"]
[WhiteElo "1874"]
[BlackElo "1687"]
[Annotator "NA"]
[PlyCount "67"]
[EventDate "2019.06.20"]
[EventType "team-tourn"]
[EventCountry "GER"]
[SourceTitle "playchess.com"]
[Source "ChessBase"]
[SourceQuality "1"]
[WhiteTeam "Baden"]
[BlackTeam "Rheinland Pfalz"]
[TimeControl "40/5400+30:1800+30"]

1. e4 {[%emt 0:00:00]} c5 {[%emt 0:00:00]} 2. c3 {[%emt 0:00:00]} g6 {[%emt 0:00:00]} 3. d4 {[%emt 0:00:00]} cxd4 {[%emt 0:00:00]} 4. cxd4 {[%emt 0:00:00]} d5 {[%emt 0:00:20]} 5. e5 {[%emt 0:02:14]} Bg7 {[%emt 0:01:03]} 6. Nf3 {[%emt 0:02:00]} Bg4 {[%emt 0:01:37]} 7. Nc3 {[%emt 0:05:12]} Nc6 {[%emt 0:06:28]} 8. Be2 {[%emt 0:03:43]} Bxf3 {[%emt 0:08:15]} 9. Bxf3 {[%emt 0:05:10]} e6 {[%emt 0:02:11]} 10. Be3 {[%emt 0:07:19]} Nge7 {[%emt 0:03:11]} 11. Qd2 {[%emt 0:04:12]} Nf5 {[%emt 0:04:49]} 12. O-O {[%emt 0:08:56]} O-O {[%emt 0:02:06]} 13. Rac1 {[%emt 0:04:44]} f6 {[%emt 0:03:34]} 14. exf6 {[%emt 0:14:26]} Qxf6 {[%emt 0:02:45]} 15. Ne2 {[%emt 0:12:45]} Nfxd4 {[%emt 0:05:42]} 16. Nxd4 {[%emt 0:04:11]} Nxd4 {[%emt 0:03:10]} 17. Bg4 {[%emt 0:03:40]} Nf5 {[%emt 0:06:54]} 18. Rc2 {[%emt 0:03:05]} Rfc8 {[%emt 0:11:20]} 19. Rfc1 {[%emt 0:02:39]} Rxc2 {[%emt 0:04:34]} 20. Rxc2 {[%emt 0:00:31]} Qd8 {[%emt 0:02:00]} 21. g3 {[%emt 0:04:08]} b6 {[%emt 0:03:56]} 22. Rc6 {[%emt 0:02:26]} Qd7 {[%emt 0:03:10]} 23. Rc2 {[%emt 0:04:37]} Rc8 {[%emt 0:04:30]} 24. Qe2 {[%emt 0:02:30]} Rc6 {[%emt 0:05:43]} 25. Bf3 {[%emt 0:01:10]} Qc8 {[%emt 0:03:07]} 26. Rxc6 {[%emt 0:00:14]} Qxc6 {[%emt 0:00:11]} 27. Kg2 e5 28. b3 {[%emt 0:01:45]} e4 {[%emt 0:08:49]} 29. Bg4 d4 30. Bf4 {[%emt 0:02:02]} d3 {[%emt 0:03:38]} 31. Qd1 {[%emt 0:00:43]} Bd4 {[%emt 0:01:52]} 32. Kf1 {[%emt 0:00:45]} Qc5 {[%emt 0:00:00]} 33. Qe1 {[%emt 0:00:00]} Qd5 {[%emt 0:00:00]} 34. Be3 {[%emt 0:00:00]} 1-0

[Event "DFMMLV 2019"]
[Site "Braunfels"]
[Date "2019.06.20"]
[Round "1.44"]
[White "Lerch, Cornelia"]
[Black "Boettger, Sina Fleur"]
[Result "1/2-1/2"]
[ECO "B22"]
[WhiteElo "1861"]
[BlackElo "1744"]
[Annotator "NA"]
[PlyCount "85"]
[EventDate "2019.06.20"]
[EventType "team-tourn"]
[EventCountry "GER"]
[SourceTitle "playchess.com"]
[Source "ChessBase"]
[SourceQuality "1"]
[WhiteTeam "Rheinland Pfalz"]
[TimeControl "40/5400+30:1800+30"]

1. e4 {[%emt 0:00:00]} c5 {[%emt 0:00:00]} 2. c3 {[%emt 0:00:00]} d5 {[%emt 0:00:00]} 3. exd5 {[%emt 0:00:03]} Qxd5 {[%emt 0:00:00]} 4. d4 {[%emt 0:00:25]} Nc6 {[%emt 0:01:01]} 5. Nf3 {[%emt 0:00:45]} Bg4 {[%emt 0:01:25]} 6. Be2 {[%emt 0:00:10]} Nf6 {[%emt 0:01:21]} 7. Be3 {[%emt 0:01:27]} cxd4 {[%emt 0:02:10]} 8. cxd4 {[%emt 0:00:34]} e6 {[%emt 0:01:54]} 9. Nc3 {[%emt 0:03:29]} Qa5 {[%emt 0:03:17]} 10. a3 {[%emt 0:02:52]} Bd6 {[%emt 0:21:18]} 11. O-O {[%emt 0:00:41]} a6 {[%emt 0:01:57]} 12. h3 {[%emt 0:00:34]} Bh5 {[%emt 0:00:50]} 13. b4 {[%emt 0:04:17]} Qd8 {[%emt 0:00:22]} 14. Qb3 {[%emt 0:01:10]} O-O {[%emt 0:00:49]} 15. Rfd1 {[%emt 0:00:43]} Ne7 {[%emt 0:06:37]} 16. Bg5 {[%emt 0:04:32]} Nfd5 {[%emt 0:00:59]} 17. Nxd5 {[%emt 0:01:18]} exd5 {[%emt 0:00:13]} 18. Re1 {[%emt 0:03:50]} f6 {[%emt 0:10:47]} 19. Bh4 {[%emt 0:05:39]} Kh8 {[%emt 0:04:50]} 20. g4 {[%emt 0:03:06]} Bf7 {[%emt 0:04:18]} 21. Qe3 {[%emt 0:04:25]} Ng6 {[%emt 0:04:17]} 22. Bg3 {[%emt 0:04:46]} Re8 {[%emt 0:00:58]} 23. Qd2 {[%emt 0:01:03]} Bxg3 {[%emt 0:02:40]} 24. fxg3 {[%emt 0:00:11]} Qd6 {[%emt 0:00:03]} 25. Kg2 {[%emt 0:00:45]} Ne7 {[%emt 0:07:38]} 26. Bd3 {[%emt 0:00:57]} Bg6 {[%emt 0:04:16]} 27. Bxg6 {[%emt 0:01:09]} Nxg6 {[%emt 0:04:54]} 28. Rxe8+ {[%emt 0:00:15]} Rxe8 {[%emt 0:00:04]} 29. Re1 {[%emt 0:00:13]} Qc6 {[%emt 0:00:39]} 30. Rxe8+ {[%emt 0:03:53]} Qxe8 {[%emt 0:00:01]} 31. Qe1 {[%emt 0:00:25]} Qxe1 {[%emt 0:02:39]} 32. Nxe1 {[%emt 0:00:07]} Ne7 {[%emt 0:00:22]} 33. Kf3 {[%emt 0:00:15]} Nc6 {[%emt 0:00:37]} 34. Ke3 {[%emt 0:00:14]} Kg8 {[%emt 0:00:39]} 35. Nd3 {[%emt 0:00:23]} b6 {[%emt 0:00:39]} 36. Nf4 {[%emt 0:00:20]} Ne7 {[%emt 0:01:05]} 37. Kd3 {[%emt 0:04:01]} Kf7 {[%emt 0:03:12]} 38. Kc3 {[%emt 0:00:42]} g5 39. Nd3 {[%emt 0:00:20]} Ke6 {[%emt 0:05:42]} 40. a4 {[%emt 0:01:10]} Kd6 {[%emt 0:04:03]} 41. a5 {[%emt 0:31:35]} bxa5 {[%emt 0:01:12]} 42. bxa5 {[%emt 0:00:00]} Nc6 {[%emt 0:01:22]} 43. Nb4 {[%emt 0:00:00]} 1/2-1/2

[Event "DFMMLV 2019"]
[Site "Braunfels"]
[Date "2019.06.20"]
[Round "1.45"]
[White "Grining, Maria"]
[Black "Marx, Christina"]
[Result "1-0"]
[ECO "E11"]
[WhiteElo "1709"]
[BlackElo "1605"]
[Annotator "NA"]
[PlyCount "67"]
[EventDate "2019.06.20"]
[EventType "team-tourn"]
[EventCountry "GER"]
[SourceTitle "playchess.com"]
[Source "ChessBase"]
[SourceQuality "1"]
[WhiteTeam "Baden"]
[BlackTeam "Rheinland Pfalz"]
[TimeControl "40/5400+30:1800+30"]

1. d4 {[%emt 0:00:00]} Nf6 {[%emt 0:00:00]} 2. Nf3 {[%emt 0:00:00]} e6 {[%emt 0:00:00]} 3. c4 {[%emt 0:00:16]} Bb4+ {[%emt 0:01:32]} 4. Bd2 {[%emt 0:00:38]} c5 {[%emt 0:02:54]} 5. Bxb4 {[%emt 0:05:47]} cxb4 {[%emt 0:00:06]} 6. Nbd2 {[%emt 0:01:36]} Nc6 {[%emt 0:06:35]} 7. e4 {[%emt 0:04:17]} d6 {[%emt 0:03:41]} 8. d5 {[%emt 0:03:26]} exd5 {[%emt 0:06:11]} 9. cxd5 {[%emt 0:00:38]} Ne7 {[%emt 0:02:30]} 10. Qa4+ {[%emt 0:02:20]} Nd7 {[%emt 0:00:09]} 11. Nc4 {[%emt 0:15:23]} O-O {[%emt 0:01:17]} 12. Qxb4 {[%emt 0:05:10]} Nc5 {[%emt 0:00:18]} 13. Ne3 {[%emt 0:06:08]} Ng6 {[%emt 0:02:26]} 14. e5 {[%emt 0:08:55]} Nf4 {[%emt 0:00:25]} 15. Qxf4 {[%emt 0:02:14]} h6 {[%emt 0:05:36]} 16. Be2 {[%emt 0:03:40]} g5 {[%emt 0:02:30]} 17. Qb4 {[%emt 0:03:53]} a5 {[%emt 0:00:58]} 18. Qd4 {[%emt 0:00:42]} b6 {[%emt 0:01:02]} 19. O-O {[%emt 0:00:52]} dxe5 {[%emt 0:01:59]} 20. Qxe5 {[%emt 0:03:08]} Re8 {[%emt 0:00:36]} 21. Qc3 {[%emt 0:01:27]} Ne4 {[%emt 0:02:03]} 22. Qc6 {[%emt 0:00:30]} Ra7 {[%emt 0:02:54]} 23. Rac1 {[%emt 0:04:50]} f6 {[%emt 0:01:03]} 24. Rfd1 {[%emt 0:00:59]} Bd7 {[%emt 0:05:16]} 25. Qc2 {[%emt 0:01:22]} f5 {[%emt 0:01:57]} 26. d6 {[%emt 0:02:07]} g4 {[%emt 0:03:42]} 27. Ne1 {[%emt 0:03:28]} Qh4 {[%emt 0:02:07]} 28. Bc4+ {[%emt 0:01:56]} Kf8 {[%emt 0:05:50]} 29. Bd3 {[%emt 0:05:26]} f4 {[%emt 0:02:09]} 30. Bxe4 {[%emt 0:01:29]} fxe3 {[%emt 0:00:58]} 31. g3 {[%emt 0:01:40]} Qf6 {[%emt 0:09:46]} 32. fxe3 {[%emt 0:02:00]} Bb5 {[%emt 0:02:46]} 33. Bd3 {[%emt 0:01:57]} Bd7 {[%emt 0:04:18]} 34. Qf2 {[%emt 0:01:13]} 1-0

[Event "DFMMLV 2019"]
[Site "Braunfels"]
[Date "2019.06.20"]
[Round "1.46"]
[White "Perovic-Ottstadt, Sanja"]
[Black "Doll, Rebecca"]
[Result "0-1"]
[ECO "D05"]
[WhiteElo "1593"]
[BlackElo "1678"]
[Annotator "NA RC"]
[PlyCount "46"]
[EventDate "2019.06.20"]
[EventType "team-tourn"]
[EventCountry "GER"]
[SourceTitle "playchess.com"]
[Source "ChessBase"]
[SourceQuality "1"]
[BlackTeam "Baden"]
[TimeControl "40/5400+30:1800+30"]

1. d4 {[%emt 0:00:00]} Nf6 {[%emt 0:00:19]} 2. Nf3 {[%emt 0:00:00]} d5 {[%emt 0:00:33]} 3. e3 {[%emt 0:00:09]} e6 {[%emt 0:00:25]} 4. Bd3 {[%emt 0:00:14]} c5 {[%emt 0:03:26]} 5. c3 {[%emt 0:00:18]} Nc6 {[%emt 0:02:52]} 6. Nbd2 {[%emt 0:00:51]} Bd6 {[%emt 0:01:45]} 7. O-O {[%emt 0:00:30]} O-O {[%emt 0:01:34]} 8. dxc5 {[%emt 0:01:05]} Bxc5 {[%emt 0:00:20]} 9. e4 {[%emt 0:00:23]} e5 {[%emt 0:09:10]} 10. Qc2 {[%emt 0:06:26]} Bg4 {[%emt 0:04:40]} 11. h3 {[%emt 0:03:21]} Bh5 {[%emt 0:01:10]} 12. exd5 {[%emt 0:05:31]} Qxd5 {[%emt 0:02:26]} 13. Bc4 {[%emt 0:03:21]} Qd7 {[%emt 0:03:34]} 14. Re1 {[%emt 0:04:04]} Rfe8 {[%emt 0:03:43]} 15. Bb3 {[%emt 0:04:57]} a6 {[%emt 0:09:56]} 16. Qd1 {[%emt 0:03:35]} e4 {[%emt 0:08:13]} 17. g4 {[%emt 0:09:12]} exf3 {[%emt 0:01:09]} 18. Rxe8+ {[%emt 0:01:41]} Rxe8 {[%emt 0:00:43]} 19. gxh5 {[%emt 0:00:42]} Qxh3 {[%emt 0:04:03]} 20. Nxf3 {[%emt 0:03:48]} Bxf2+ {[%emt 0:05:02]} 21. Kxf2 {[%emt 0:02:17]} Ng4+ {[%emt 0:00:16]} 22. Kg1 {[%emt 0:00:50]} Qg3+ {[%emt 0:00:21]} 23. Kh1 {[%emt 0:01:54]} Nf2# 0-1

[Event "DFMMLV 2019"]
[Site "Braunfels"]
[Date "2019.06.20"]
[Round "1.47"]
[White "Landenberger, Anja Kathrin"]
[Black "Boos-Guckes, Astrid"]
[Result "1-0"]
[ECO "A40"]
[WhiteElo "1781"]
[BlackElo "1329"]
[Annotator "NA"]
[PlyCount "79"]
[EventDate "2019.06.20"]
[EventType "team-tourn"]
[EventCountry "GER"]
[SourceTitle "playchess.com"]
[Source "ChessBase"]
[SourceQuality "1"]
[BlackTeam "Rheinland Pfalz"]
[TimeControl "40/5400+30:1800+30"]

1. d4 {[%emt 0:00:02]} e6 {[%emt 0:00:08]} 2. Nf3 {[%emt 0:01:42]} d5 {[%emt 0:00:30]} 3. Bf4 {[%emt 0:00:29]} c5 {[%emt 0:01:43]} 4. c3 {[%emt 0:01:58]} Bd7 {[%emt 0:01:55]} 5. e3 {[%emt 0:00:54]} Qb6 {[%emt 0:01:26]} 6. Qb3 {[%emt 0:11:12]} c4 {[%emt 0:06:55]} 7. Qc2 {[%emt 0:03:18]} Nf6 {[%emt 0:02:26]} 8. h3 {[%emt 0:02:48]} Be7 {[%emt 0:01:53]} 9. Nbd2 {[%emt 0:00:57]} O-O {[%emt 0:00:36]} 10. Be2 {[%emt 0:07:56]} Nc6 {[%emt 0:04:56]} 11. O-O {[%emt 0:02:26]} Rfc8 {[%emt 0:07:09]} 12. Rfe1 {[%emt 0:22:39]} Na5 {[%emt 0:21:27]} 13. Ne5 {[%emt 0:05:35]} Qd8 {[%emt 0:05:06]} 14. e4 {[%emt 0:17:06]} b5 {[%emt 0:02:21]} 15. Nxd7 {[%emt 0:07:04]} Qxd7 {[%emt 0:04:57]} 16. Bf3 {[%emt 0:03:53]} Nc6 {[%emt 0:04:36]} 17. exd5 {[%emt 0:01:19]} exd5 {[%emt 0:01:03]} 18. Be5 {[%emt 0:01:25]} Nxe5 {[%emt 0:02:53]} 19. dxe5 {[%emt 0:00:06]} Ne8 {[%emt 0:02:25]} 20. Bg4 {[%emt 0:00:11]} Qc6 {[%emt 0:08:16]} 21. Bxc8 {[%emt 0:00:07]} Rxc8 {[%emt 0:01:03]} 22. Nf3 {[%emt 0:00:39]} h6 {[%emt 0:01:20]} 23. Nd4 {[%emt 0:00:49]} Qb6 {[%emt 0:02:44]} 24. Qf5 {[%emt 0:02:56]} Rc7 {[%emt 0:03:02]} 25. Re3 {[%emt 0:01:53]} Bc5 {[%emt 0:00:35]} 26. Rd1 {[%emt 0:00:11]} b4 {[%emt 0:01:30]} 27. Rg3 {[%emt 0:01:12]} bxc3 {[%emt 0:01:52]} 28. bxc3 {[%emt 0:00:02]} Qb2 {[%emt 0:04:41]} 29. e6 {[%emt 0:02:11]} fxe6 {[%emt 0:02:19]} 30. Qxe6+ {[%emt 0:00:11]} Kf8 {[%emt 0:00:31]} 31. Rf3+ {[%emt 0:00:43]} Nf6 {[%emt 0:00:19]} 32. Re1 {[%emt 0:00:45]} Be7 {[%emt 0:00:49]} 33. Qxd5 {[%emt 0:00:29]} Qb8 {[%emt 0:00:53]} 34. Ne6+ {[%emt 0:00:18]} Kg8 {[%emt 0:00:33]} 35. Rxf6 {[%emt 0:00:09]} gxf6 {[%emt 0:00:20]} 36. Nxc7+ {[%emt 0:00:25]} Kg7 {[%emt 0:00:16]} 37. Rxe7+ {[%emt 0:00:12]} Kg6 {[%emt 0:00:12]} 38. Qf7+ {[%emt 0:00:06]} Kf5 {[%emt 0:00:27]} 39. Qh5+ {[%emt 0:00:14]} Kf4 {[%emt 0:00:25]} 40. Nd5# {[%emt 0:00:01]} 1-0

[Event "DFMMLV 2019"]
[Site "Braunfels"]
[Date "2019.06.20"]
[Round "1.48"]
[White "Marx, Sarah"]
[Black "Johe, Hildegard"]
[Result "*"]
[ECO "B06"]
[WhiteElo "1068"]
[BlackElo "1353"]
[Annotator "NA RC"]
[PlyCount "54"]
[EventDate "2019.06.20"]
[EventType "team-tourn"]
[EventCountry "GER"]
[SourceTitle "playchess.com"]
[Source "ChessBase"]
[SourceQuality "1"]
[WhiteTeam "Rheinland Pfalz"]
[BlackTeam "Baden"]
[TimeControl "40/5400+30:1800+30"]

1. e4 {[%emt 0:00:00]} g6 {[%emt 0:00:00]} 2. d4 {[%emt 0:00:11]} Bg7 {[%emt 0:00:00]} 3. Nf3 {[%emt 0:00:29]} d6 {[%emt 0:00:08]} 4. Bd3 {[%emt 0:00:40]} Nf6 {[%emt 0:00:41]} 5. h3 {[%emt 0:00:21]} O-O {[%emt 0:01:57]} 6. O-O {[%emt 0:02:00]} Nbd7 {[%emt 0:01:59]} 7. Bf4 {[%emt 0:03:21]} Nb6 {[%emt 0:01:29]} 8. Qe2 {[%emt 0:01:36]} c6 {[%emt 0:06:24]} 9. b3 {[%emt 0:02:18]} d5 {[%emt 0:02:41]} 10. e5 {[%emt 0:00:33]} Ne8 {[%emt 0:03:37]} 11. c4 {[%emt 0:00:23]} dxc4 {[%emt 0:02:00]} 12. bxc4 {[%emt 0:00:09]} Nc7 {[%emt 0:01:53]} 13. Nc3 {[%emt 0:00:20]} Be6 {[%emt 0:04:04]} 14. Rab1 {[%emt 0:10:12]} Rb8 {[%emt 0:02:48]} 15. Be3 {[%emt 0:02:53]} f5 {[%emt 0:09:44]} 16. Ng5 {[%emt 0:01:15]} h6 {[%emt 0:03:55]} 17. Nxe6 {[%emt 0:00:08]} Nxe6 {[%emt 0:00:18]} 18. d5 {[%emt 0:01:03]} cxd5 {[%emt 0:04:02]} 19. Bxb6 {[%emt 0:00:38]} axb6 {[%emt 0:00:37]} 20. Nxd5 {[%emt 0:00:25]} Nc5 {[%emt 0:03:21]} 21. Rfe1 {[%emt 0:01:34]} e6 {[%emt 0:14:02]} 22. Nf4 {[%emt 0:01:09]} g5 {[%emt 0:08:53]} 23. Ng6 {[%emt 0:02:19]} Nxd3 {[%emt 0:01:45]} 24. Red1 {[%emt 0:00:13]} Re8 {[%emt 0:00:28]} 25. Rxd3 {[%emt 0:00:10]} Qc7 {[%emt 0:01:13]} 26. g3 {[%emt 0:02:31]} Kh7 {[%emt 0:02:20]} 27. Qh5 {[%emt 0:01:17]} Qf7 {[%emt 0:04:25]} *

[Event "DFMMLV 2019"]
[Site "Braunfels"]
[Date "2019.06.20"]
[Round "1.49"]
[White "Liez, Franziska"]
[Black "Braeutigam, Irina"]
[Result "1/2-1/2"]
[ECO "B13"]
[WhiteElo "1829"]
[BlackElo "1973"]
[Annotator "NA"]
[PlyCount "82"]
[EventDate "2019.06.20"]
[EventType "team-tourn"]
[EventCountry "GER"]
[SourceTitle "playchess.com"]
[Source "ChessBase"]
[SourceQuality "1"]
[BlackTeam "Schleswig Holstein"]
[TimeControl "40/5400+30:1800+30"]

1. e4 {[%emt 0:00:00]} c6 {[%emt 0:00:08]} 2. d4 {[%emt 0:00:19]} d5 {[%emt 0:00:02]} 3. exd5 {[%emt 0:00:34]} cxd5 {[%emt 0:00:02]} 4. Bd3 {[%emt 0:00:44]} Nc6 {[%emt 0:00:46]} 5. c3 {[%emt 0:01:35]} Qc7 {[%emt 0:01:09]} 6. Ne2 {[%emt 0:02:48]} Nf6 {[%emt 0:06:29]} 7. Bf4 {[%emt 0:02:23]} Qb6 {[%emt 0:03:51]} 8. Qb3 {[%emt 0:02:53]} Qd8 {[%emt 0:03:58]} 9. h3 {[%emt 0:03:49]} g6 {[%emt 0:03:42]} 10. Nd2 {[%emt 0:03:40]} Bg7 {[%emt 0:01:00]} 11. O-O {[%emt 0:03:51]} O-O {[%emt 0:03:26]} 12. Nf3 {[%emt 0:05:10]} Na5 {[%emt 0:09:35]} 13. Qc2 {[%emt 0:03:10]} Nc4 {[%emt 0:03:21]} 14. Ne5 {[%emt 0:06:52]} Nd6 {[%emt 0:02:02]} 15. Ng3 {[%emt 0:02:18]} Be6 {[%emt 0:04:56]} 16. Qd2 {[%emt 0:11:29]} Nc4 {[%emt 0:08:34]} 17. Qe2 {[%emt 0:04:33]} Rc8 {[%emt 0:04:24]} 18. Rac1 {[%emt 0:01:36]} a6 {[%emt 0:02:31]} 19. b3 {[%emt 0:03:58]} Na5 {[%emt 0:12:22]} 20. Rfd1 {[%emt 0:06:51]} b5 {[%emt 0:08:06]} 21. Qd2 {[%emt 0:02:38]} Nc6 {[%emt 0:01:20]} 22. Nxc6 {[%emt 0:02:46]} Rxc6 {[%emt 0:01:07]} 23. Bh6 {[%emt 0:00:33]} Qd7 {[%emt 0:01:04]} 24. Bxg7 {[%emt 0:03:15]} Kxg7 {[%emt 0:00:02]} 25. Rc2 {[%emt 0:02:54]} Rfc8 {[%emt 0:01:00]} 26. Rdc1 {[%emt 0:01:23]} Qc7 {[%emt 0:01:13]} 27. Kh1 {[%emt 0:05:14]} Ne8 {[%emt 0:02:33]} 28. Qe3 {[%emt 0:03:12]} Qd7 {[%emt 0:00:51]} 29. h4 {[%emt 0:03:33]} f6 {[%emt 0:05:33]} 30. f4 {[%emt 0:01:35]} Nd6 {[%emt 0:01:10]} 31. h5 {[%emt 0:02:45]} Kf7 {[%emt 0:02:19]} 32. Qf3 {[%emt 0:03:03]} Nf5 {[%emt 0:01:39]} 33. Ne2 {[%emt 0:01:35]} Nh6 {[%emt 0:03:03]} 34. hxg6+ {[%emt 0:01:33]} hxg6 {[%emt 0:00:02]} 35. Ng3 {[%emt 0:00:28]} Nf5 {[%emt 0:01:53]} 36. Nxf5 {[%emt 0:01:36]} Bxf5 {[%emt 0:00:01]} 37. Kg1 {[%emt 0:00:35]} Bxd3 {[%emt 0:01:23]} 38. Qxd3 {[%emt 0:00:06]} Qg4 {[%emt 0:00:15]} 39. Qd2 {[%emt 0:01:17]} Qf5 {[%emt 0:00:46]} 40. Rb2 R8c7 {[%emt 0:01:42]} 41. Rbc2 {[%emt 0:01:55]} Rc8 {[%emt 0:02:19]} 1/2-1/2

[Event "DFMMLV 2019"]
[Site "Braunfels"]
[Date "2019.06.20"]
[Round "1.50"]
[White "Glinzner, Alva"]
[Black "Tornay, Haizea"]
[Result "1-0"]
[ECO "B19"]
[WhiteElo "1833"]
[BlackElo "1598"]
[Annotator "NA"]
[PlyCount "91"]
[EventDate "2019.06.20"]
[EventType "team-tourn"]
[EventCountry "GER"]
[SourceTitle "playchess.com"]
[Source "ChessBase"]
[SourceQuality "1"]
[WhiteTeam "Schleswig Holstein"]
[BlackTeam "Hessen 2"]
[TimeControl "40/5400+30:1800+30"]

1. e4 {[%emt 0:00:00]} c6 {[%emt 0:00:00]} 2. d4 {[%emt 0:00:00]} d5 {[%emt 0:00:00]} 3. Nc3 {[%emt 0:00:00]} dxe4 {[%emt 0:00:06]} 4. Nxe4 {[%emt 0:00:06]} Bf5 {[%emt 0:00:08]} 5. Ng3 {[%emt 0:00:09]} Bg6 {[%emt 0:00:24]} 6. Nf3 {[%emt 0:00:23]} Nd7 {[%emt 0:00:15]} 7. h4 {[%emt 0:00:11]} h6 {[%emt 0:01:18]} 8. h5 {[%emt 0:00:06]} Bh7 {[%emt 0:00:25]} 9. Bd3 {[%emt 0:00:08]} Bxd3 {[%emt 0:00:09]} 10. Qxd3 {[%emt 0:00:03]} e6 {[%emt 0:00:39]} 11. Bd2 {[%emt 0:00:17]} Ngf6 {[%emt 0:01:08]} 12. O-O-O {[%emt 0:00:24]} Qc7 {[%emt 0:02:44]} 13. Kb1 {[%emt 0:01:02]} O-O-O {[%emt 0:04:25]} 14. Ne4 {[%emt 0:01:54]} Nxe4 {[%emt 0:08:41]} 15. Qxe4 {[%emt 0:00:05]} Nf6 {[%emt 0:03:43]} 16. Qe2 {[%emt 0:00:18]} Bd6 {[%emt 0:04:39]} 17. c4 {[%emt 0:01:52]} Rhe8 {[%emt 0:12:00]} 18. Ne5 {[%emt 0:02:39]} Bxe5 {[%emt 0:08:42]} 19. dxe5 {[%emt 0:00:12]} Nd7 {[%emt 0:09:01]} 20. Bc3 {[%emt 0:01:20]} Nc5 {[%emt 0:24:12]} 21. Bd4 {[%emt 0:04:57]} Na4 {[%emt 0:07:04]} 22. Qc2 {[%emt 0:09:40]} c5 {[%emt 0:02:08]} 23. Be3 {[%emt 0:03:06]} Nb6 {[%emt 0:02:32]} 24. f4 {[%emt 0:02:14]} Qe7 {[%emt 0:05:07]} 25. b3 {[%emt 0:01:30]} Nd7 {[%emt 0:01:16]} 26. Qf2 {[%emt 0:06:53]} b6 {[%emt 0:00:20]} 27. Qf3 {[%emt 0:00:39]} Nb8 {[%emt 0:01:28]} 28. Qg4 {[%emt 0:03:46]} f5 {[%emt 0:00:48]} 29. Qe2 {[%emt 0:12:03]} Qb7 {[%emt 0:00:22]} 30. Bc1 {[%emt 0:00:34]} Qe4+ {[%emt 0:00:43]} 31. Qxe4 {[%emt 0:00:20]} fxe4 {[%emt 0:00:02]} 32. Rde1 {[%emt 0:00:50]} Rd4 {[%emt 0:00:34]} 33. Bb2 {[%emt 0:01:01]} Rd2 {[%emt 0:00:10]} 34. Rhg1 {[%emt 0:00:41]} Rf8 {[%emt 0:00:28]} 35. Rxe4 {[%emt 0:00:29]} Rf2 {[%emt 0:00:39]} 36. Bc1 {[%emt 0:01:13]} Nc6 {[%emt 0:00:33]} 37. Be3 {[%emt 0:15:49]} Re2 {[%emt 0:00:02]} 38. Bxc5 {[%emt 0:00:08]} Rxe4 {[%emt 0:00:17]} 39. Bxf8 {[%emt 0:00:04]} Rxf4 {[%emt 0:00:16]} 40. Bxg7 {[%emt 0:00:05]} Rf5 {[%emt 0:00:44]} 41. g4 {[%emt 0:30:14]} Rf3 {[%emt 0:05:16]} 42. Bxh6 {[%emt 0:00:00]} Nxe5 {[%emt 0:02:01]} 43. Bg7 {[%emt 0:00:00]} Nd7 {[%emt 0:04:57]} 44. g5 {[%emt 0:00:00]} Rh3 {[%emt 0:00:33]} 45. h6 {[%emt 0:00:00]} Rh5 {[%emt 0:01:00]} 46. g6 {[%emt 0:00:00]} 1-0

[Event "DFMMLV 2019"]
[Site "Braunfels"]
[Date "2019.06.20"]
[Round "1.51"]
[White "Krausse, Vanessa"]
[Black "Leib, Britta"]
[Result "0-1"]
[ECO "C02"]
[WhiteElo "1645"]
[BlackElo "1884"]
[Annotator "NA"]
[PlyCount "59"]
[EventDate "2019.06.20"]
[EventType "team-tourn"]
[EventCountry "GER"]
[SourceTitle "playchess.com"]
[Source "ChessBase"]
[SourceQuality "1"]
[WhiteTeam "Hessen 2"]
[BlackTeam "Schleswig Holstein"]
[TimeControl "40/5400+30:1800+30"]

1. e4 {[%emt 0:00:00]} e6 {[%emt 0:00:00]} 2. d4 {[%emt 0:00:02]} d5 {[%emt 0:00:00]} 3. e5 {[%emt 0:00:55]} c5 {[%emt 0:00:02]} 4. c3 {[%emt 0:00:45]} Nc6 {[%emt 0:00:49]} 5. f4 {[%emt 0:01:49]} Qb6 {[%emt 0:03:58]} 6. Nf3 {[%emt 0:01:05]} h5 {[%emt 0:02:35]} 7. Bd3 {[%emt 0:01:36]} Bd7 {[%emt 0:05:04]} 8. Be3 {[%emt 0:00:50]} Qxb2 {[%emt 0:14:02]} 9. O-O {[%emt 0:13:07]} c4 {[%emt 0:10:31]} 10. Be2 {[%emt 0:03:28]} Nh6 {[%emt 0:05:53]} 11. Nh4 {[%emt 0:07:26]} Be7 {[%emt 0:05:59]} 12. Nf3 {[%emt 0:03:05]} Nf5 {[%emt 0:06:47]} 13. Bc1 {[%emt 0:03:19]} Qxa1 {[%emt 0:12:33]} 14. Qc2 {[%emt 0:01:12]} Ncxd4 {[%emt 0:00:33]} 15. Nxd4 {[%emt 0:00:43]} Nxd4 {[%emt 0:00:24]} 16. cxd4 {[%emt 0:00:24]} Qxd4+ {[%emt 0:00:39]} 17. Kh1 {[%emt 0:00:12]} Qb6 {[%emt 0:01:59]} 18. Nc3 {[%emt 0:00:42]} d4 {[%emt 0:04:36]} 19. Na4 {[%emt 0:01:22]} Qc6 {[%emt 0:00:16]} 20. Bd1 {[%emt 0:00:33]} Rc8 {[%emt 0:05:26]} 21. Nb2 {[%emt 0:01:32]} g6 {[%emt 0:03:03]} 22. Bf3 {[%emt 0:00:41]} Qb5 {[%emt 0:01:08]} 23. Rd1 {[%emt 0:01:40]} d3 {[%emt 0:02:26]} 24. Qc3 {[%emt 0:00:22]} O-O {[%emt 0:05:19]} 25. f5 {[%emt 0:02:23]} exf5 {[%emt 0:00:53]} 26. Bh6 {[%emt 0:00:13]} Be6 {[%emt 0:03:01]} 27. Qe1 {[%emt 0:04:23]} Rfd8 {[%emt 0:01:21]} 28. Qg3 {[%emt 0:02:33]} h4 {[%emt 0:00:14]} 29. Qf2 {[%emt 0:02:28]} c3 {[%emt 0:01:10]} 30. Ra1 0-1